[Event "Titled Tuesday Blitz July 18 Early 2023"]
[White "Zemlyanskii, Ivan"]
[Black "Vovk, Orest"]
[WhiteFideId "24249971"]
[BlackFideId "14113490"]
[WhiteElo "2873"]
[BlackElo "2588"]
[Result "1-0"]
[Round "3"]
[TimeControl "180+2"]
[Date "2023.07.18"]
[WhiteClock "0:00:11"]
[BlackClock "0:00:04"]
[Board "54"]

1. d4 {[%clk 0:03:00]}  h6 {[%clk 0:02:54]} 2. e4 {[%clk 0:02:56]}  g5 {[%clk 0:02:54]} 3. h4 {[%clk 0:02:48]}  g4 {[%clk 0:02:54]} 4. Nc3 {[%clk 0:02:14]}  Bg7 {[%clk 0:02:52]} 5. Be3 {[%clk 0:02:09]}  d6 {[%clk 0:02:50]} 6. Nge2 {[%clk 0:02:02]}  c6 {[%clk 0:02:50]} 7. Ng3 {[%clk 0:01:58]}  Qa5 {[%clk 0:02:49]} 8. Qd2 {[%clk 0:01:56]}  h5 {[%clk 0:02:34]} 9. Bc4 {[%clk 0:01:50]}  b5 {[%clk 0:02:32]} 10. Bb3 {[%clk 0:01:50]}  Nd7 {[%clk 0:02:23]} 11. O-O-O {[%clk 0:01:26]}  Nb6 {[%clk 0:02:21]} 12. Kb1 {[%clk 0:01:23]}  Nc4 {[%clk 0:02:19]} 13. Qd3 {[%clk 0:01:05]}  Nxe3 {[%clk 0:02:11]} 14. Qxe3 {[%clk 0:01:06]}  Bh6 {[%clk 0:02:03]} 15. Qd3 {[%clk 0:00:58]}  Ba6 {[%clk 0:01:50]} 16. Nce2 {[%clk 0:00:50]}  b4 {[%clk 0:01:44]} 17. Bc4 {[%clk 0:00:50]}  Bxc4 {[%clk 0:01:43]} 18. Qxc4 {[%clk 0:00:51]}  Qb5 {[%clk 0:01:42]} 19. Qxb5 {[%clk 0:00:48]}  cxb5 {[%clk 0:01:43]} 20. Nxh5 {[%clk 0:00:49]}  Be3 {[%clk 0:01:29]} 21. fxe3 {[%clk 0:00:36]}  Rxh5 {[%clk 0:01:29]} 22. Ng3 {[%clk 0:00:37]}  Rh7 {[%clk 0:01:27]} 23. Rdf1 {[%clk 0:00:38]}  Nf6 {[%clk 0:01:25]} 24. Rf5 {[%clk 0:00:36]}  a6 {[%clk 0:01:20]} 25. e5 {[%clk 0:00:35]}  dxe5 {[%clk 0:01:18]} 26. Rxe5 {[%clk 0:00:35]}  Kd7 {[%clk 0:01:13]} 27. Ne4 {[%clk 0:00:24]}  Nxe4 {[%clk 0:01:02]} 28. Rxe4 {[%clk 0:00:25]}  g3 {[%clk 0:00:49]} 29. Rg4 {[%clk 0:00:25]}  Rah8 {[%clk 0:00:49]} 30. Kc1 {[%clk 0:00:23]}  f5 {[%clk 0:00:49]} 31. Rf4 {[%clk 0:00:22]}  e6 {[%clk 0:00:43]} 32. d5 {[%clk 0:00:21]}  exd5 {[%clk 0:00:40]} 33. Rxb4 {[%clk 0:00:21]}  Ke6 {[%clk 0:00:30]} 34. Kd2 {[%clk 0:00:20]}  Ke5 {[%clk 0:00:28]} 35. Rf4 {[%clk 0:00:20]}  Rh5 {[%clk 0:00:24]} 36. Ke2 {[%clk 0:00:19]}  a5 {[%clk 0:00:21]} 37. c3 {[%clk 0:00:19]}  Rc8 {[%clk 0:00:14]} 38. Kf3 {[%clk 0:00:19]}  b4 {[%clk 0:00:09]} 39. Rc1 {[%clk 0:00:19]}  bxc3 {[%clk 0:00:08]} 40. Rxc3 {[%clk 0:00:20]}  Rch8 {[%clk 0:00:07]} 41. Kxg3 {[%clk 0:00:20]}  Rg8+ {[%clk 0:00:07]} 42. Kf3 {[%clk 0:00:20]}  Rh7 {[%clk 0:00:06]} 43. Rc5 {[%clk 0:00:17]}  Rhg7 {[%clk 0:00:05]} 44. g4 {[%clk 0:00:14]}  Rxg4 {[%clk 0:00:03]} 45. Rxg4 {[%clk 0:00:14]}  Rxg4 {[%clk 0:00:04]} 46. Rxa5 {[%clk 0:00:13]}  Rxh4 {[%clk 0:00:05]} 47. Ra8 {[%clk 0:00:13]}  Rh2 {[%clk 0:00:05]} 48. b4 {[%clk 0:00:12]}  Rb2 {[%clk 0:00:04]} 49. a3 {[%clk 0:00:12]}  Rb3 {[%clk 0:00:04]} 50. Ke2 {[%clk 0:00:11]}  Rb2+ {[%clk 0:00:03]} 51. Kd3 {[%clk 0:00:11]}  Rb3+ {[%clk 0:00:04]} 52. Kd2 {[%clk 0:00:12]}  Ke4 {[%clk 0:00:04]} 53. Re8+ {[%clk 0:00:11]}  Kf3 {[%clk 0:00:04]} 54. Re5 {[%clk 0:00:09]}  Rxa3 {[%clk 0:00:04]} 55. Rxd5 {[%clk 0:00:06]}  Ke4 {[%clk 0:00:04]} 56. Rd4+ {[%clk 0:00:06]}  Ke5 {[%clk 0:00:04]} 57. Rd8 {[%clk 0:00:06]}  Rb3 {[%clk 0:00:05]} 58. Rb8 {[%clk 0:00:05]}  Ke4 {[%clk 0:00:05]} 59. Kc2 {[%clk 0:00:04]}  Rxe3 {[%clk 0:00:05]} 60. Re8+ {[%clk 0:00:05]}  Kd4 {[%clk 0:00:05]} 61. Rxe3 {[%clk 0:00:05]}  Kxe3 {[%clk 0:00:06]} 62. b5 {[%clk 0:00:06]}  f4 {[%clk 0:00:07]} 63. Kd1 {[%clk 0:00:07]}  Kf2 {[%clk 0:00:04]} 64. b6 {[%clk 0:00:06]}  f3 {[%clk 0:00:05]} 65. b7 {[%clk 0:00:07]}  Kg1 {[%clk 0:00:06]} 66. b8=Q {[%clk 0:00:08]}  f2 {[%clk 0:00:07]} 67. Qg3+ {[%clk 0:00:08]}  Kh1 {[%clk 0:00:07]} 68. Qh3+ {[%clk 0:00:08]}  Kg1 {[%clk 0:00:07]} 69. Ke2 {[%clk 0:00:09]}  f1=Q+ {[%clk 0:00:04]} 70. Qxf1+ {[%clk 0:00:09]}  Kh2 {[%clk 0:00:05]} 71. Qf3 {[%clk 0:00:09]}  Kg1 {[%clk 0:00:05]} 72. Qg4+ {[%clk 0:00:10]}  Kh2 {[%clk 0:00:04]} 73. Kf2 {[%clk 0:00:11]} 1-0


[Site "https://www.chess.com"]

[Event "Titled Tuesday Blitz July 18 Early 2023"]
[White "Tica, Sven"]
[Black "Jiang, Andrew"]
[WhiteFideId "14526948"]
[BlackFideId "30953510"]
[WhiteElo "2663"]
[BlackElo "2371"]
[Result "1/2-1/2"]
[Round "3"]
[TimeControl "180+2"]
[Date "2023.07.18"]
[WhiteClock "0:01:04"]
[BlackClock "0:00:48"]
[Board "59"]

1. Nf3 {[%clk 0:03:00]}  d5 {[%clk 0:02:47]} 2. g3 {[%clk 0:03:01]}  Bg4 {[%clk 0:02:44]} 3. Bg2 {[%clk 0:03:01]}  e6 {[%clk 0:02:44]} 4. O-O {[%clk 0:02:59]}  Nf6 {[%clk 0:02:42]} 5. c4 {[%clk 0:03:00]}  c6 {[%clk 0:02:39]} 6. cxd5 {[%clk 0:03:00]}  exd5 {[%clk 0:02:38]} 7. Qb3 {[%clk 0:03:00]}  Qb6 {[%clk 0:02:37]} 8. Qe3+ {[%clk 0:03:00]}  Qxe3 {[%clk 0:02:36]} 9. dxe3 {[%clk 0:03:01]}  Bd6 {[%clk 0:02:34]} 10. Nc3 {[%clk 0:03:02]}  Nbd7 {[%clk 0:02:32]} 11. a4 {[%clk 0:03:01]}  a5 {[%clk 0:02:32]} 12. b3 {[%clk 0:03:01]}  O-O {[%clk 0:02:31]} 13. Nd4 {[%clk 0:03:01]}  Nc5 {[%clk 0:02:23]} 14. Ba3 {[%clk 0:03:01]}  Rfd8 {[%clk 0:02:21]} 15. Rfd1 {[%clk 0:02:58]}  Ne6 {[%clk 0:02:18]} 16. Bxd6 {[%clk 0:02:57]}  Rxd6 {[%clk 0:02:19]} 17. Rab1 {[%clk 0:02:58]}  Nxd4 {[%clk 0:02:18]} 18. exd4 {[%clk 0:02:59]}  Bf5 {[%clk 0:02:17]} 19. Rb2 {[%clk 0:02:56]}  Nd7 {[%clk 0:02:13]} 20. b4 {[%clk 0:02:53]}  axb4 {[%clk 0:01:58]} 21. Rxb4 {[%clk 0:02:54]}  Ra7 {[%clk 0:01:53]} 22. Rd2 {[%clk 0:02:52]}  Kf8 {[%clk 0:01:47]} 23. f3 {[%clk 0:02:49]}  Bg6 {[%clk 0:01:43]} 24. e4 {[%clk 0:02:48]}  dxe4 {[%clk 0:01:42]} 25. fxe4 {[%clk 0:02:49]}  c5 {[%clk 0:01:42]} 26. Rc4 {[%clk 0:02:16]}  Rxd4 {[%clk 0:01:42]} 27. Rdxd4 {[%clk 0:02:10]}  cxd4 {[%clk 0:01:43]} 28. Nd5 {[%clk 0:01:54]}  Ra8 {[%clk 0:01:42]} 29. Rxd4 {[%clk 0:01:51]}  Nc5 {[%clk 0:01:35]} 30. Nb6 {[%clk 0:01:44]}  Ra6 {[%clk 0:01:34]} 31. Rb4 {[%clk 0:01:45]}  Bxe4 {[%clk 0:01:30]} 32. Bxe4 {[%clk 0:01:36]}  Nxe4 {[%clk 0:01:30]} 33. Nd7+ {[%clk 0:01:35]}  Ke7 {[%clk 0:01:29]} 34. Nb8 {[%clk 0:01:36]}  Ra8 {[%clk 0:01:27]} 35. Rxe4+ {[%clk 0:01:35]}  Kd8 {[%clk 0:01:24]} 36. Rd4+ {[%clk 0:01:25]}  Kc7 {[%clk 0:01:21]} 37. Rd7+ {[%clk 0:01:17]}  Kxb8 {[%clk 0:01:21]} 38. Rxf7 {[%clk 0:01:18]}  Rxa4 {[%clk 0:01:21]} 39. Rxg7 {[%clk 0:01:19]}  h6 {[%clk 0:01:12]} 40. Rg6 {[%clk 0:01:16]}  Ra6 {[%clk 0:01:12]} 41. Rg8+ {[%clk 0:01:07]}  Kc7 {[%clk 0:01:11]} 42. Kg2 {[%clk 0:01:07]}  b5 {[%clk 0:01:09]} 43. Rg7+ {[%clk 0:01:05]}  Kb6 {[%clk 0:01:05]} 44. Kf3 {[%clk 0:01:02]}  Ra3+ {[%clk 0:01:01]} 45. Ke2 {[%clk 0:00:59]}  Ra2+ {[%clk 0:01:00]} 46. Kd3 {[%clk 0:00:59]}  Rxh2 {[%clk 0:01:01]} 47. Kc3 {[%clk 0:00:59]}  Kc5 {[%clk 0:01:00]} 48. Rc7+ {[%clk 0:00:57]}  Kd6 {[%clk 0:01:00]} 49. Rg7 {[%clk 0:00:57]}  Rh3 {[%clk 0:00:59]} 50. Kb4 {[%clk 0:00:57]}  Ke5 {[%clk 0:00:55]} 51. Kxb5 {[%clk 0:00:55]}  Kf6 {[%clk 0:00:54]} 52. Rg8 {[%clk 0:00:54]}  Kf7 {[%clk 0:00:54]} 53. Rg4 {[%clk 0:00:54]}  h5 {[%clk 0:00:54]} 54. Rh4 {[%clk 0:00:55]}  Rxh4 {[%clk 0:00:51]} 55. gxh4 {[%clk 0:00:56]}  Kf6 {[%clk 0:00:51]} 56. Kc4 {[%clk 0:00:56]}  Kf5 {[%clk 0:00:52]} 57. Kd4 {[%clk 0:00:57]}  Kf4 {[%clk 0:00:50]} 58. Kd3 {[%clk 0:00:57]}  Kf3 {[%clk 0:00:47]} 59. Kd4 {[%clk 0:00:57]}  Kg3 {[%clk 0:00:47]} 60. Ke4 {[%clk 0:00:58]}  Kg4 {[%clk 0:00:47]} 61. Ke3 {[%clk 0:00:58]}  Kg3 {[%clk 0:00:44]} 62. Ke4 {[%clk 0:00:57]}  Kxh4 {[%clk 0:00:45]} 63. Kf4 {[%clk 0:00:58]}  Kh3 {[%clk 0:00:45]} 64. Kf3 {[%clk 0:00:59]}  h4 {[%clk 0:00:45]} 65. Kf2 {[%clk 0:01:00]}  Kg4 {[%clk 0:00:46]} 66. Kg2 {[%clk 0:01:00]}  h3+ {[%clk 0:00:47]} 67. Kh2 {[%clk 0:01:01]}  Kh4 {[%clk 0:00:47]} 68. Kh1 {[%clk 0:01:02]}  Kg3 {[%clk 0:00:47]} 69. Kg1 {[%clk 0:01:03]}  h2+ {[%clk 0:00:47]} 70. Kh1 {[%clk 0:01:04]}  Kh3 {[%clk 0:00:48]} 1/2-1/2


[Site "https://www.chess.com"]

[Event "Titled Tuesday Blitz July 18 Early 2023"]
[White "Yeritsyan, Hayk"]
[Black "Bluebaum, Matthias"]
[WhiteFideId "13307320"]
[BlackFideId "24651516"]
[WhiteElo "2516"]
[BlackElo "3014"]
[Result "0-1"]
[Round "3"]
[TimeControl "180+2"]
[Date "2023.07.18"]
[WhiteClock "0:00:09"]
[BlackClock "0:01:36"]
[Board "62"]

1. d4 {[%clk 0:02:59]}  d5 {[%clk 0:03:00]} 2. Nf3 {[%clk 0:02:59]}  e6 {[%clk 0:03:00]} 3. e3 {[%clk 0:02:59]}  Nf6 {[%clk 0:03:00]} 4. Bd3 {[%clk 0:03:00]}  c5 {[%clk 0:03:01]} 5. c3 {[%clk 0:03:00]}  Nc6 {[%clk 0:03:01]} 6. Nbd2 {[%clk 0:03:00]}  Bd6 {[%clk 0:03:02]} 7. Qe2 {[%clk 0:03:01]}  O-O {[%clk 0:03:00]} 8. O-O {[%clk 0:03:01]}  e5 {[%clk 0:03:01]} 9. dxc5 {[%clk 0:03:02]}  Bxc5 {[%clk 0:03:01]} 10. e4 {[%clk 0:03:03]}  Re8 {[%clk 0:03:00]} 11. h3 {[%clk 0:03:01]}  Be6 {[%clk 0:02:59]} 12. exd5 {[%clk 0:03:01]}  Bxd5 {[%clk 0:03:00]} 13. Ne4 {[%clk 0:03:01]}  Be7 {[%clk 0:02:52]} 14. Rd1 {[%clk 0:02:59]}  Bxe4 {[%clk 0:02:37]} 15. Bxe4 {[%clk 0:02:57]}  Qc7 {[%clk 0:02:38]} 16. Bg5 {[%clk 0:02:11]}  Nxe4 {[%clk 0:02:36]} 17. Qxe4 {[%clk 0:02:09]}  h6 {[%clk 0:02:34]} 18. Bxe7 {[%clk 0:02:09]}  Qxe7 {[%clk 0:02:35]} 19. Rd5 {[%clk 0:02:06]}  Qe6 {[%clk 0:02:34]} 20. Rad1 {[%clk 0:01:49]}  f5 {[%clk 0:02:33]} 21. Qc4 {[%clk 0:01:37]}  Rac8 {[%clk 0:02:28]} 22. Rc5 {[%clk 0:01:31]}  Qxc4 {[%clk 0:02:25]} 23. Rxc4 {[%clk 0:01:31]}  Red8 {[%clk 0:02:25]} 24. Rxd8+ {[%clk 0:01:10]}  Rxd8 {[%clk 0:02:26]} 25. Rc5 {[%clk 0:01:11]}  Rd1+ {[%clk 0:02:09]} 26. Kh2 {[%clk 0:01:10]}  e4 {[%clk 0:02:10]} 27. Nd4 {[%clk 0:00:40]}  Nxd4 {[%clk 0:02:10]} 28. cxd4 {[%clk 0:00:40]}  f4 {[%clk 0:02:11]} 29. Rc7 {[%clk 0:00:39]}  Kf8 {[%clk 0:02:08]} 30. Rc8+ {[%clk 0:00:36]}  Kf7 {[%clk 0:02:08]} 31. Rc7+ {[%clk 0:00:36]}  Kf6 {[%clk 0:02:09]} 32. Rc8 {[%clk 0:00:20]}  Rxd4 {[%clk 0:02:05]} 33. g3 {[%clk 0:00:20]}  f3 {[%clk 0:01:54]} 34. g4 {[%clk 0:00:17]}  Rd2 {[%clk 0:01:51]} 35. Kg3 {[%clk 0:00:18]}  Rxb2 {[%clk 0:01:51]} 36. Re8 {[%clk 0:00:18]}  Rxa2 {[%clk 0:01:48]} 37. Rxe4 {[%clk 0:00:18]}  a5 {[%clk 0:01:46]} 38. Kxf3 {[%clk 0:00:17]}  b5 {[%clk 0:01:46]} 39. Rd4 {[%clk 0:00:15]}  b4 {[%clk 0:01:46]} 40. Rd6+ {[%clk 0:00:16]}  Ke5 {[%clk 0:01:46]} 41. Rg6 {[%clk 0:00:16]}  b3 {[%clk 0:01:43]} 42. Rxg7 {[%clk 0:00:17]}  Ra4 {[%clk 0:01:42]} 43. Re7+ {[%clk 0:00:13]}  Kd5 {[%clk 0:01:42]} 44. Re1 {[%clk 0:00:14]}  Rb4 {[%clk 0:01:36]} 45. Ke3 {[%clk 0:00:13]}  Re4+ {[%clk 0:01:34]} 46. Kd2 {[%clk 0:00:12]}  Rxe1 {[%clk 0:01:35]} 47. Kxe1 {[%clk 0:00:09]}  b2 {[%clk 0:01:36]} 0-1


[Site "https://www.chess.com"]

[Event "Titled Tuesday Blitz July 18 Early 2023"]
[White "Galperin, Platon"]
[Black "Santos Flores, Alberto"]
[WhiteFideId "14165414"]
[BlackFideId "3601234"]
[WhiteElo "2971"]
[BlackElo "2515"]
[Result "1-0"]
[Round "3"]
[TimeControl "180+2"]
[Date "2023.07.18"]
[WhiteClock "0:00:38"]
[BlackClock "0:00:00"]
[Board "63"]

1. e4 {[%clk 0:03:00]}  e6 {[%clk 0:02:58]} 2. Qe2 {[%clk 0:02:59]}  c5 {[%clk 0:02:57]} 3. Nf3 {[%clk 0:02:59]}  Nc6 {[%clk 0:02:57]} 4. g3 {[%clk 0:03:00]}  g6 {[%clk 0:02:56]} 5. Bg2 {[%clk 0:03:00]}  Bg7 {[%clk 0:02:57]} 6. O-O {[%clk 0:03:01]}  Nge7 {[%clk 0:02:56]} 7. c3 {[%clk 0:02:56]}  O-O {[%clk 0:02:53]} 8. d4 {[%clk 0:02:56]}  cxd4 {[%clk 0:02:53]} 9. cxd4 {[%clk 0:02:57]}  Nxd4 {[%clk 0:02:52]} 10. Nxd4 {[%clk 0:02:58]}  Bxd4 {[%clk 0:02:53]} 11. Rd1 {[%clk 0:02:58]}  Bg7 {[%clk 0:02:53]} 12. Nc3 {[%clk 0:02:58]}  d5 {[%clk 0:02:47]} 13. exd5 {[%clk 0:02:17]}  Nxd5 {[%clk 0:02:47]} 14. Nxd5 {[%clk 0:02:15]}  exd5 {[%clk 0:02:48]} 15. Bxd5 {[%clk 0:02:14]}  Qb6 {[%clk 0:02:48]} 16. a4 {[%clk 0:02:10]}  Bh3 {[%clk 0:02:34]} 17. a5 {[%clk 0:02:08]}  Qb4 {[%clk 0:02:32]} 18. Qf3 {[%clk 0:02:05]}  Rae8 {[%clk 0:02:22]} 19. Be3 {[%clk 0:01:59]}  Bg4 {[%clk 0:02:13]} 20. Bc5 {[%clk 0:01:39]}  Bxf3 {[%clk 0:01:42]} 21. Bxb4 {[%clk 0:01:39]}  Bxd1 {[%clk 0:01:42]} 22. Rxd1 {[%clk 0:01:40]}  Rd8 {[%clk 0:01:30]} 23. Be7 {[%clk 0:01:35]}  Rxd5 {[%clk 0:00:23]} 24. Rxd5 {[%clk 0:01:33]}  Re8 {[%clk 0:00:24]} 25. Rd7 {[%clk 0:01:32]}  Bxb2 {[%clk 0:00:23]} 26. Rxb7 {[%clk 0:01:29]}  Bd4 {[%clk 0:00:23]} 27. a6 {[%clk 0:01:27]}  Rc8 {[%clk 0:00:19]} 28. Kg2 {[%clk 0:01:20]}  Kg7 {[%clk 0:00:18]} 29. Kf3 {[%clk 0:01:14]}  Rc2 {[%clk 0:00:17]} 30. Ke4 {[%clk 0:01:07]}  Bxf2 {[%clk 0:00:16]} 31. Bd6 {[%clk 0:01:08]}  Bb6 {[%clk 0:00:14]} 32. Be5+ {[%clk 0:01:07]}  Kh6 {[%clk 0:00:15]} 33. Rxf7 {[%clk 0:01:05]}  Re2+ {[%clk 0:00:14]} 34. Kd5 {[%clk 0:01:05]}  Ra2 {[%clk 0:00:14]} 35. h4 {[%clk 0:00:48]}  Kh5 {[%clk 0:00:06]} 36. Rxh7+ {[%clk 0:00:47]}  Kg4 {[%clk 0:00:07]} 37. Rg7 {[%clk 0:00:46]}  Rxa6 {[%clk 0:00:05]} 38. Rxg6+ {[%clk 0:00:46]}  Kh5 {[%clk 0:00:03]} 39. Rg8 {[%clk 0:00:42]}  Ra2 {[%clk 0:00:00]} 40. Bf6 {[%clk 0:00:38]} 1-0


[Site "https://www.chess.com"]

[Event "Titled Tuesday Blitz July 18 Early 2023"]
[White "Rasulov, Vugar"]
[Black "Vyatkin, Dmitry"]
[WhiteFideId "13402390"]
[BlackFideId "4171900"]
[WhiteElo "2881"]
[BlackElo "2511"]
[Result "1-0"]
[Round "3"]
[TimeControl "180+2"]
[Date "2023.07.18"]
[WhiteClock "0:00:25"]
[BlackClock "0:00:14"]
[Board "66"]

1. Nf3 {[%clk 0:03:00]}  Nf6 {[%clk 0:02:59]} 2. e3 {[%clk 0:03:00]}  g6 {[%clk 0:02:54]} 3. c4 {[%clk 0:03:01]}  Bg7 {[%clk 0:02:54]} 4. b4 {[%clk 0:03:01]}  O-O {[%clk 0:02:39]} 5. Bb2 {[%clk 0:03:01]}  d6 {[%clk 0:02:40]} 6. d4 {[%clk 0:02:59]}  Nbd7 {[%clk 0:02:40]} 7. Be2 {[%clk 0:02:56]}  e5 {[%clk 0:02:39]} 8. dxe5 {[%clk 0:02:56]}  Ng4 {[%clk 0:02:39]} 9. O-O {[%clk 0:02:56]}  Ngxe5 {[%clk 0:02:37]} 10. Nxe5 {[%clk 0:02:56]}  Nxe5 {[%clk 0:02:36]} 11. Nc3 {[%clk 0:02:56]}  Be6 {[%clk 0:02:36]} 12. c5 {[%clk 0:02:45]}  dxc5 {[%clk 0:02:30]} 13. bxc5 {[%clk 0:02:46]}  Nc4 {[%clk 0:02:29]} 14. Bxc4 {[%clk 0:02:39]}  Bxc4 {[%clk 0:02:29]} 15. Re1 {[%clk 0:02:39]}  Qxd1 {[%clk 0:02:16]} 16. Rexd1 {[%clk 0:02:37]}  Rfd8 {[%clk 0:02:16]} 17. Na4 {[%clk 0:02:25]}  Rxd1+ {[%clk 0:02:00]} 18. Rxd1 {[%clk 0:02:25]}  Bxa2 {[%clk 0:01:53]} 19. Bxg7 {[%clk 0:02:22]}  Kxg7 {[%clk 0:01:53]} 20. Nc3 {[%clk 0:02:16]}  Be6 {[%clk 0:01:52]} 21. Nb5 {[%clk 0:02:10]}  c6 {[%clk 0:01:33]} 22. Nc7 {[%clk 0:02:09]}  Rf8 {[%clk 0:01:33]} 23. Nxe6+ {[%clk 0:01:57]}  fxe6 {[%clk 0:01:33]} 24. f3 {[%clk 0:01:58]}  Kf6 {[%clk 0:01:31]} 25. Kf2 {[%clk 0:01:55]}  b6 {[%clk 0:01:25]} 26. Rd6 {[%clk 0:01:51]}  b5 {[%clk 0:01:04]} 27. Rxc6 {[%clk 0:01:50]}  b4 {[%clk 0:01:05]} 28. Ke2 {[%clk 0:01:45]}  Ke5 {[%clk 0:01:02]} 29. Ra6 {[%clk 0:01:39]}  b3 {[%clk 0:01:01]} 30. Kd2 {[%clk 0:01:35]}  Rb8 {[%clk 0:00:53]} 31. Kc1 {[%clk 0:01:35]}  Kd5 {[%clk 0:00:51]} 32. Rxa7 {[%clk 0:01:33]}  h5 {[%clk 0:00:51]} 33. Rc7 {[%clk 0:01:24]}  b2+ {[%clk 0:00:48]} 34. Kb1 {[%clk 0:01:24]}  Kc4 {[%clk 0:00:48]} 35. c6 {[%clk 0:01:19]}  Kc3 {[%clk 0:00:48]} 36. Rb7 {[%clk 0:01:17]}  Rc8 {[%clk 0:00:43]} 37. Rxb2 {[%clk 0:01:16]}  Kd3 {[%clk 0:00:41]} 38. Rb3+ {[%clk 0:01:15]}  Ke2 {[%clk 0:00:41]} 39. Rc3 {[%clk 0:01:15]}  Kf2 {[%clk 0:00:39]} 40. Rc2+ {[%clk 0:01:15]}  Kxe3 {[%clk 0:00:40]} 41. Kb2 {[%clk 0:01:16]}  Kd4 {[%clk 0:00:32]} 42. Kb3 {[%clk 0:00:58]}  Kd5 {[%clk 0:00:32]} 43. c7 {[%clk 0:00:58]}  Kd6 {[%clk 0:00:31]} 44. Kb4 {[%clk 0:00:46]}  Rxc7 {[%clk 0:00:30]} 45. Rxc7 {[%clk 0:00:47]}  Kxc7 {[%clk 0:00:31]} 46. Kc5 {[%clk 0:00:48]}  Kd7 {[%clk 0:00:30]} 47. Kd4 {[%clk 0:00:49]}  Kd6 {[%clk 0:00:29]} 48. f4 {[%clk 0:00:48]}  Kd7 {[%clk 0:00:28]} 49. Ke5 {[%clk 0:00:47]}  Ke7 {[%clk 0:00:29]} 50. g3 {[%clk 0:00:41]}  Kf7 {[%clk 0:00:28]} 51. h3 {[%clk 0:00:26]}  Ke7 {[%clk 0:00:28]} 52. g4 {[%clk 0:00:26]}  h4 {[%clk 0:00:14]} 53. g5 {[%clk 0:00:25]} 1-0


[Site "https://www.chess.com"]

[Event "Titled Tuesday Blitz July 18 Early 2023"]
[White "Novikov, Evgenij"]
[Black "Baskakov, Egor"]
[WhiteFideId "4125380"]
[BlackFideId "24197866"]
[WhiteElo "2511"]
[BlackElo "2873"]
[Result "0-1"]
[Round "3"]
[TimeControl "180+2"]
[Date "2023.07.18"]
[WhiteClock "0:00:00"]
[BlackClock "0:00:02"]
[Board "67"]

1. d4 {[%clk 0:03:00]}  Nf6 {[%clk 0:02:59]} 2. Nf3 {[%clk 0:02:59]}  e6 {[%clk 0:02:59]} 3. c4 {[%clk 0:02:58]}  d5 {[%clk 0:03:00]} 4. Nc3 {[%clk 0:02:57]}  Ne4 {[%clk 0:03:00]} 5. Qc2 {[%clk 0:02:50]}  f5 {[%clk 0:02:59]} 6. g3 {[%clk 0:02:46]}  c6 {[%clk 0:02:59]} 7. Bg2 {[%clk 0:02:46]}  Be7 {[%clk 0:02:59]} 8. O-O {[%clk 0:02:44]}  O-O {[%clk 0:02:59]} 9. Ne5 {[%clk 0:02:32]}  Nd7 {[%clk 0:02:55]} 10. Nxd7 {[%clk 0:02:21]}  Bxd7 {[%clk 0:02:55]} 11. f3 {[%clk 0:02:20]}  Nxc3 {[%clk 0:02:54]} 12. bxc3 {[%clk 0:02:18]}  dxc4 {[%clk 0:02:51]} 13. Rb1 {[%clk 0:02:14]}  b5 {[%clk 0:02:51]} 14. e4 {[%clk 0:02:13]}  Qb6 {[%clk 0:02:45]} 15. Be3 {[%clk 0:02:07]}  e5 {[%clk 0:02:34]} 16. Qe2 {[%clk 0:01:58]}  fxe4 {[%clk 0:02:30]} 17. fxe4 {[%clk 0:01:57]}  Rxf1+ {[%clk 0:02:25]} 18. Bxf1 {[%clk 0:01:57]}  Rf8 {[%clk 0:02:22]} 19. Bg2 {[%clk 0:01:33]}  Qa5 {[%clk 0:02:14]} 20. Qd2 {[%clk 0:01:28]}  Be6 {[%clk 0:01:52]} 21. d5 {[%clk 0:01:24]}  Rd8 {[%clk 0:01:52]} 22. Rd1 {[%clk 0:01:19]}  cxd5 {[%clk 0:01:41]} 23. exd5 {[%clk 0:01:20]}  Bf5 {[%clk 0:01:40]} 24. Bg5 {[%clk 0:01:03]}  Qb6+ {[%clk 0:01:37]} 25. Kh1 {[%clk 0:01:02]}  Bf6 {[%clk 0:01:19]} 26. Bxf6 {[%clk 0:00:55]}  Qxf6 {[%clk 0:01:17]} 27. Rf1 {[%clk 0:00:55]}  Qg6 {[%clk 0:01:14]} 28. Qf2 {[%clk 0:00:54]}  Be4 {[%clk 0:01:04]} 29. Qxa7 {[%clk 0:00:52]}  Bxg2+ {[%clk 0:01:00]} 30. Kxg2 {[%clk 0:00:53]}  Qe4+ {[%clk 0:01:00]} 31. Kg1 {[%clk 0:00:53]}  Qxd5 {[%clk 0:00:59]} 32. Qe7 {[%clk 0:00:46]}  h6 {[%clk 0:00:49]} 33. Re1 {[%clk 0:00:34]}  Rf8 {[%clk 0:00:48]} 34. Qxe5 {[%clk 0:00:30]}  Qd2 {[%clk 0:00:46]} 35. Qe6+ {[%clk 0:00:29]}  Kh8 {[%clk 0:00:45]} 36. Qe7 {[%clk 0:00:22]}  Qf2+ {[%clk 0:00:43]} 37. Kh1 {[%clk 0:00:21]}  Ra8 {[%clk 0:00:42]} 38. a3 {[%clk 0:00:19]}  Qf3+ {[%clk 0:00:40]} 39. Kg1 {[%clk 0:00:18]}  Qxc3 {[%clk 0:00:39]} 40. Rf1 {[%clk 0:00:16]}  Qd4+ {[%clk 0:00:33]} 41. Kh1 {[%clk 0:00:14]}  Qd5+ {[%clk 0:00:33]} 42. Kg1 {[%clk 0:00:14]}  Qd4+ {[%clk 0:00:32]} 43. Kh1 {[%clk 0:00:14]}  Qd8 {[%clk 0:00:33]} 44. Qc5 {[%clk 0:00:12]}  Rc8 {[%clk 0:00:24]} 45. Qxb5 {[%clk 0:00:10]}  c3 {[%clk 0:00:25]} 46. Qe2 {[%clk 0:00:06]}  c2 {[%clk 0:00:24]} 47. Rc1 {[%clk 0:00:06]}  Qd5+ {[%clk 0:00:23]} 48. Kg1 {[%clk 0:00:06]}  Qd4+ {[%clk 0:00:24]} 49. Kg2 {[%clk 0:00:05]}  Qb2 {[%clk 0:00:20]} 50. Qd2 {[%clk 0:00:05]}  h5 {[%clk 0:00:15]} 51. h4 {[%clk 0:00:05]}  Qb7+ {[%clk 0:00:14]} 52. Kh2 {[%clk 0:00:05]}  Qb2 {[%clk 0:00:11]} 53. Qg5 {[%clk 0:00:05]}  Qd4 {[%clk 0:00:04]} 54. Qxh5+ {[%clk 0:00:04]}  Kg8 {[%clk 0:00:05]} 55. Qg5 {[%clk 0:00:04]}  Qf2+ {[%clk 0:00:04]} 56. Kh3 {[%clk 0:00:04]}  Qe2 {[%clk 0:00:03]} 57. Qd5+ {[%clk 0:00:03]}  Kh8 {[%clk 0:00:04]} 58. Qg5 {[%clk 0:00:00]}  Rf8 {[%clk 0:00:02]} 0-1


[Site "https://www.chess.com"]